[Event "Nordstansblixten 2025"]
[Site "Nordstan, Göteborg, Sweden"]
[Date "2025.05.10"]
[Round "4.1"]
[White "Torres, Lucas"]
[Black "Olivius, Sten"]
[Result "1/2-1/2"]
[TimeControl "3 minutes + 2 seconds per move from move one"]
[WhiteFideId "1769464"]
[BlackFideId "1788728"]
[WhiteElo "1805"]
[BlackElo "1874"]

1. e4 {[%clk 00:03:03]} e6 {[%clk 00:03:01]} {[%emt 00:00:04]} 2. d4 {[%clk
00:03:02]} {[%emt 00:00:02]} d5 {[%clk 00:03:02]} {[%emt 00:00:03]} 3. Nc3
{[%clk 00:03:04]} Nf6 {[%clk 00:03:03]} {[%emt 00:00:01]} 4. Bg5 {[%clk
00:03:05]} dxe4 {[%clk 00:03:00]} {[%emt 00:00:04]} 5. Nxe4 {[%clk 00:03:04]}
{[%emt 00:00:03]} Be7 {[%clk 00:03:01]} {[%emt 00:00:01]} 6. Bxf6 {[%clk
00:03:04]} {[%emt 00:00:02]} Bxf6 {[%clk 00:03:02]} 7. Nf3 {[%clk 00:03:05]}
{[%emt 00:00:01]} Nd7 {[%clk 00:03:01]} {[%emt 00:00:03]} 8. Bd3 {[%clk
00:03:00]} {[%emt 00:00:07]} Be7 {[%clk 00:03:00]} {[%emt 00:00:02]} 9. O-O
{[%clk 00:02:59]} {[%emt 00:00:04]} Nf6 {[%clk 00:02:56]} {[%emt 00:00:06]} 10.
Qe2 {[%clk 00:02:54]} {[%emt 00:00:05]} O-O {[%clk 00:02:49]} {[%emt 00:00:11]}
11. c3 {[%clk 00:02:53]} {[%emt 00:00:02]} c6 {[%clk 00:02:41]} {[%emt
00:00:11]} 12. Rad1 {[%clk 00:02:48]} {[%emt 00:00:07]} Nd5 {[%clk 00:02:40]}
{[%emt 00:00:03]} 13. Qd2 {[%clk 00:02:35]} {[%emt 00:00:14]} Bf6 {[%clk
00:02:30]} {[%emt 00:00:13]} 14. c4 {[%clk 00:01:59]} {[%emt 00:00:38]} Nb6
{[%clk 00:02:25]} {[%emt 00:00:07]} 15. Nxf6+ {[%clk 00:01:54]} {[%emt
00:00:07]} Qxf6 {[%clk 00:02:24]} {[%emt 00:00:04]} 16. b3 {[%clk 00:01:54]}
{[%emt 00:00:01]} Bd7 {[%clk 00:02:10]} {[%emt 00:00:16]} 17. Rfe1 {[%clk
00:01:44]} {[%emt 00:00:12]} Rad8 {[%clk 00:02:06]} {[%emt 00:00:06]} 18. Ne5
{[%clk 00:01:39]} {[%emt 00:00:07]} Bc8 {[%clk 00:01:54]} {[%emt 00:00:13]} 19.
a4 {[%clk 00:01:33]} {[%emt 00:00:09]} Nd7 {[%clk 00:01:34]} {[%emt 00:00:21]}
20. Nxd7 {[%clk 00:01:25]} {[%emt 00:00:10]} Bxd7 {[%clk 00:01:32]} {[%emt
00:00:05]} 21. Be4 {[%clk 00:01:23]} {[%emt 00:00:03]} Rfe8 {[%clk 00:01:25]}
{[%emt 00:00:10]} 22. Qc2 {[%clk 00:01:12]} {[%emt 00:00:12]} h6 {[%clk
00:01:15]} {[%emt 00:00:12]} 23. d5 {[%clk 00:00:59]} {[%emt 00:00:15]} exd5
{[%clk 00:01:08]} {[%emt 00:00:09]} 24. cxd5 {[%clk 00:00:59]} {[%emt
00:00:02]} cxd5 {[%clk 00:00:39]} {[%emt 00:00:32]} 25. Bxd5 {[%clk 00:00:40]}
{[%emt 00:00:21]} Bg4 {[%clk 00:00:39]} {[%emt 00:00:02]} 26. Rxe8+ {[%clk
00:00:35]} {[%emt 00:00:07]} Rxe8 {[%clk 00:00:40]} {[%emt 00:00:01]} 27. Rf1
{[%clk 00:00:25]} {[%emt 00:00:12]} Qb6 {[%clk 00:00:31]} {[%emt 00:00:11]} 28.
Qc3 {[%clk 00:00:13]} {[%emt 00:00:13]} Be6 {[%clk 00:00:22]} {[%emt 00:00:12]}
29. Bxe6 {[%emt 00:00:04]} Rxe6 {[%clk 00:00:21]} {[%emt 00:00:02]} 30. Qc8+
{[%clk 00:00:13]} {[%emt 00:00:02]} Kh7 {[%clk 00:00:21]} {[%emt 00:00:02]} 31.
Qc2+ {[%clk 00:00:13]} {[%emt 00:00:02]} g6 {[%clk 00:00:20]} {[%emt 00:00:03]}
32. Rd1 {[%clk 00:00:12]} {[%emt 00:00:03]} Rd6 {[%clk 00:00:14]} {[%emt
00:00:08]} 33. Rxd6 {[%clk 00:00:09]} {[%emt 00:00:05]} Qxd6 {[%clk 00:00:15]}
{[%emt 00:00:01]} 34. h3 {[%clk 00:00:09]} {[%emt 00:00:02]} Kg7 {[%clk
00:00:15]} {[%emt 00:00:01]} 35. Qc3+ {[%clk 00:00:10]} {[%emt 00:00:02]} Kh7
{[%clk 00:00:16]} 36. Qf3 {[%clk 00:00:10]} {[%emt 00:00:02]} Qd7 {[%clk
00:00:14]} {[%emt 00:00:04]} 37. h4 {[%clk 00:00:08]} {[%emt 00:00:04]} Kg7
{[%clk 00:00:14]} {[%emt 00:00:01]} 38. h5 {[%clk 00:00:09]} {[%emt 00:00:02]}
g5 {[%clk 00:00:12]} {[%emt 00:00:04]} 39. Qc3+ {[%clk 00:00:09]} {[%emt
00:00:01]} f6 {[%clk 00:00:12]} {[%emt 00:00:02]} 40. Qb4 {[%clk 00:00:08]}
{[%emt 00:00:03]} Kf7 {[%clk 00:00:12]} {[%emt 00:00:02]} 41. Qc4+ {[%clk
00:00:09]} {[%emt 00:00:02]} Kg7 {[%clk 00:00:13]} {[%emt 00:00:01]} 42. Qc2
{[%clk 00:00:09]} {[%emt 00:00:02]} Qd6 {[%clk 00:00:08]} {[%emt 00:00:07]} 43.
Qg6+ {[%clk 00:00:09]} {[%emt 00:00:02]} Kf8 {[%clk 00:00:07]} {[%emt
00:00:03]} 44. Qxh6+ {[%clk 00:00:10]} {[%emt 00:00:02]} Ke7 {[%clk 00:00:08]}
45. Qg7+ {[%clk 00:00:10]} {[%emt 00:00:02]} Ke6 {[%clk 00:00:09]} {[%emt
00:00:01]} 46. Qxb7 {[%clk 00:00:07]} {[%emt 00:00:05]} Qd1+ {[%clk 00:00:09]}
{[%emt 00:00:02]} 47. Kh2 {[%clk 00:00:07]} Qxh5+ {[%clk 00:00:10]} {[%emt
00:00:02]} 48. Kg1 {[%clk 00:00:08]} {[%emt 00:00:02]} Qd1+ {[%clk 00:00:11]}
{[%emt 00:00:02]} 49. Kh2 {[%clk 00:00:09]} Qh5+ {[%clk 00:00:12]} 50. Kg1
{[%clk 00:00:10]} 1/2-1/2

[Event "Nordstansblixten 2025"]
[Site "Nordstan, Göteborg, Sweden"]
[Date "2025.05.10"]
[Round "4.2"]
[White "Madevan Vaishnavi, Yaashvan"]
[Black "Andersson, Stig"]
[Result "0-1"]
[TimeControl "3 minutes + 2 seconds per move from move one"]
[WhiteFideId "1772180"]
[BlackFideId "1731971"]
[WhiteElo "1717"]
[BlackElo "1837"]

1. e4 {[%clk 00:03:03]} e5 {[%clk 00:03:02]} {[%emt 00:00:02]} 2. Nf3 {[%clk
00:03:04]} {[%emt 00:00:01]} Nc6 {[%clk 00:03:03]} {[%emt 00:00:01]} 3. d4
{[%clk 00:03:05]} {[%emt 00:00:01]} exd4 {[%clk 00:03:03]} {[%emt 00:00:02]} 4.
Bc4 {[%clk 00:03:05]} {[%emt 00:00:02]} d6 {[%clk 00:03:02]} {[%emt 00:00:02]}
5. Nxd4 {[%clk 00:03:05]} {[%emt 00:00:02]} Bd7 {[%clk 00:03:02]} {[%emt
00:00:02]} 6. O-O {[%clk 00:03:04]} {[%emt 00:00:04]} Nf6 {[%clk 00:03:00]}
{[%emt 00:00:04]} 7. Nc3 {[%clk 00:03:05]} Be7 {[%clk 00:03:00]} {[%emt
00:00:02]} 8. Re1 {[%clk 00:02:40]} {[%emt 00:00:27]} O-O {[%clk 00:02:58]}
{[%emt 00:00:03]} 9. Bf4 {[%clk 00:02:40]} {[%emt 00:00:03]} Ng4 {[%clk
00:02:35]} {[%emt 00:00:21]} 10. Nxc6 {[%clk 00:02:26]} {[%emt 00:00:19]} bxc6
{[%clk 00:02:36]} {[%emt 00:00:02]} 11. h3 {[%clk 00:02:23]} {[%emt 00:00:05]}
Nf6 {[%clk 00:02:33]} {[%emt 00:00:04]} 12. e5 {[%clk 00:02:17]} {[%emt
00:00:09]} Ne8 {[%clk 00:02:17]} {[%emt 00:00:18]} 13. Qf3 {[%clk 00:01:16]}
{[%emt 00:01:03]} a5 {[%clk 00:02:06]} {[%emt 00:00:12]} 14. Rad1 {[%clk
00:01:06]} {[%emt 00:00:12]} a4 {[%clk 00:02:05]} {[%emt 00:00:04]} 15. Qg3
{[%clk 00:00:40]} {[%emt 00:00:26]} d5 {[%clk 00:02:04]} {[%emt 00:00:03]} 16.
Bd3 {[%clk 00:00:41]} {[%emt 00:00:02]} Bh4 {[%clk 00:02:00]} {[%emt 00:00:07]}
17. Qf3 {[%clk 00:00:36]} {[%emt 00:00:06]} Bg5 {[%clk 00:01:46]} {[%emt
00:00:16]} 18. Qh5 {[%clk 00:00:19]} {[%emt 00:00:19]} h6 {[%clk 00:01:35]}
{[%emt 00:00:13]} 19. Bxg5 {[%clk 00:00:07]} {[%emt 00:00:14]} Qxg5 {[%clk
00:01:35]} {[%emt 00:00:02]} 20. Qxg5 {[%clk 00:00:08]} hxg5 {[%clk 00:01:35]}
{[%emt 00:00:02]} 21. a3 {[%clk 00:00:10]} g6 {[%clk 00:01:27]} {[%emt
00:00:09]} 22. Be2 {[%clk 00:00:07]} {[%emt 00:00:05]} Ng7 {[%clk 00:01:19]}
{[%emt 00:00:10]} 0-1

[Event "Nordstansblixten 2025"]
[Site "Nordstan, Göteborg, Sweden"]
[Date "2025.05.10"]
[Round "4.3"]
[White "Kadunic, Admir"]
[Black "Wellevit, Tomas"]
[Result "0-1"]
[TimeControl "3 minutes + 2 seconds per move from move one"]
[WhiteFideId "1773542"]
[BlackFideId "1731963"]
[WhiteElo "2109"]
[BlackElo "2131"]

1. d4 {[%clk 00:03:03]} d5 {[%clk 00:03:04]} 2. Nf3 {[%clk 00:03:05]} Nf6
{[%clk 00:03:05]} 3. g3 {[%clk 00:03:06]} Bf5 {[%clk 00:03:05]} 4. Bg2 {[%clk
00:03:07]} Nc6 {[%clk 00:03:04]} {[%emt 00:00:03]} 5. O-O {[%clk 00:03:07]}
{[%emt 00:00:02]} e6 {[%clk 00:03:05]} 6. c4 {[%clk 00:03:08]} {[%emt
00:00:02]} Bd6 {[%clk 00:03:03]} {[%emt 00:00:04]} 7. Nc3 {[%clk 00:02:58]}
{[%emt 00:00:12]} O-O {[%clk 00:02:58]} {[%emt 00:00:07]} 8. cxd5 {[%clk
00:02:58]} {[%emt 00:00:03]} exd5 {[%clk 00:02:52]} {[%emt 00:00:08]} 9. Bg5
{[%clk 00:02:57]} {[%emt 00:00:03]} Be6 {[%clk 00:02:52]} {[%emt 00:00:01]} 10.
Qb3 {[%clk 00:02:57]} {[%emt 00:00:02]} Na5 {[%clk 00:02:52]} {[%emt 00:00:02]}
11. Qc2 {[%clk 00:02:37]} {[%emt 00:00:22]} Be7 {[%clk 00:02:48]} {[%emt
00:00:06]} 12. Ne5 {[%clk 00:02:36]} {[%emt 00:00:03]} Nc6 {[%clk 00:02:38]}
{[%emt 00:00:12]} 13. Nxc6 {[%clk 00:02:27]} {[%emt 00:00:11]} bxc6 {[%clk
00:02:39]} 14. Na4 {[%clk 00:02:24]} {[%emt 00:00:06]} Rb8 {[%clk 00:02:27]}
{[%emt 00:00:13]} 15. Rab1 {[%clk 00:02:19]} {[%emt 00:00:07]} Qd7 {[%clk
00:02:26]} {[%emt 00:00:04]} 16. Nc5 {[%clk 00:02:17]} {[%emt 00:00:04]} Bxc5
{[%clk 00:02:26]} {[%emt 00:00:01]} 17. Qxc5 {[%clk 00:02:18]} Ne4 {[%clk
00:02:15]} {[%emt 00:00:13]} 18. Be3 {[%clk 00:02:03]} {[%emt 00:00:17]} Nxc5
{[%clk 00:02:16]} {[%emt 00:00:02]} 0-1

[Event "Nordstansblixten 2025"]
[Site "Nordstan, Göteborg, Sweden"]
[Date "2025.05.10"]
[Round "4.4"]
[White "Munuswamy, Shivakumar"]
[Black "Karlsson, Stefan"]
[Result "0-1"]
[TimeControl "3 minutes + 2 seconds per move from move one"]
[WhiteFideId "1788914"]
[BlackFideId "1771183"]
[WhiteElo "1458"]
[BlackElo "2128"]

1. e4 {[%clk 00:03:02]} {[%emt 00:00:01]} c5 {[%clk 00:03:02]} {[%emt
00:00:03]} 2. Nf3 {[%clk 00:03:01]} {[%emt 00:00:03]} d6 {[%clk 00:03:03]} 3.
Bc4 {[%clk 00:02:57]} {[%emt 00:00:06]} Nf6 {[%clk 00:03:02]} {[%emt 00:00:03]}
4. Nc3 {[%clk 00:02:57]} {[%emt 00:00:03]} Nc6 {[%clk 00:03:02]} {[%emt
00:00:02]} 5. d4 {[%clk 00:02:45]} {[%emt 00:00:14]} cxd4 {[%clk 00:03:01]}
{[%emt 00:00:02]} 6. Nxd4 {[%clk 00:02:43]} {[%emt 00:00:05]} Qb6 {[%clk
00:02:37]} {[%emt 00:00:26]} 7. Nxc6 {[%clk 00:02:33]} {[%emt 00:00:11]} bxc6
{[%clk 00:02:37]} {[%emt 00:00:03]} 8. b3 {[%clk 00:02:14]} {[%emt 00:00:21]}
g6 {[%clk 00:02:26]} {[%emt 00:00:13]} 9. Bb2 {[%clk 00:02:13]} {[%emt
00:00:03]} Bg7 {[%clk 00:02:27]} 10. Qd3 {[%clk 00:02:00]} {[%emt 00:00:15]}
O-O {[%clk 00:02:18]} {[%emt 00:00:11]} 11. f4 {[%clk 00:01:58]} {[%emt
00:00:04]} Bb7 {[%clk 00:01:29]} {[%emt 00:00:51]} 12. O-O-O {[%clk 00:01:53]}
{[%emt 00:00:08]} Rad8 {[%clk 00:01:12]} {[%emt 00:00:18]} 13. h3 {[%clk
00:01:34]} {[%emt 00:00:20]} d5 {[%clk 00:01:04]} {[%emt 00:00:10]} 14. exd5
{[%clk 00:01:15]} {[%emt 00:00:21]} cxd5 {[%clk 00:01:05]} 15. Nxd5 {[%clk
00:01:06]} {[%emt 00:00:10]} Bxd5 {[%clk 00:00:42]} {[%emt 00:00:25]} 16. Bxf6
{[%clk 00:00:57]} {[%emt 00:00:12]} Bxc4 {[%clk 00:00:34]} {[%emt 00:00:11]} 17.
Qxc4 {[%clk 00:00:56]} {[%emt 00:00:02]} Bxf6 {[%clk 00:00:32]} {[%emt
00:00:04]} 18. g4 {[%clk 00:00:45]} {[%emt 00:00:13]} Qe3+ {[%clk 00:00:29]}
{[%emt 00:00:05]} 19. Kb1 {[%clk 00:00:43]} {[%emt 00:00:04]} Rc8 {[%clk
00:00:28]} {[%emt 00:00:04]} 20. Qd3 {[%clk 00:00:36]} {[%emt 00:00:09]} Qxf4
{[%clk 00:00:26]} {[%emt 00:00:04]} 21. Rhf1 {[%clk 00:00:28]} {[%emt
00:00:09]} Qb4 {[%clk 00:00:23]} {[%emt 00:00:04]} 22. h4 {[%clk 00:00:19]}
{[%emt 00:00:12]} Qa3 {[%clk 00:00:23]} {[%emt 00:00:02]} 23. c3 {[%clk
00:00:08]} {[%emt 00:00:13]} Rxc3 {[%clk 00:00:18]} {[%emt 00:00:07]} 24. Rxf6
{[%clk 00:00:04]} {[%emt 00:00:06]} Rxd3 {[%clk 00:00:17]} {[%emt 00:00:03]} 25.
Rxd3 {[%clk 00:00:00]} 0-1

[Event "Nordstansblixten 2025"]
[Site "Nordstan, Göteborg, Sweden"]
[Date "2025.05.10"]
[Round "4.5"]
[White "Kenani, Dariush"]
[Black "Bjureblad, Martin"]
[Result "1-0"]
[TimeControl "3 minutes + 2 seconds per move from move one"]
[WhiteFideId "1707973"]
[BlackFideId "1717928"]
[WhiteElo "1933"]
[BlackElo "1597"]

1. e4 {[%clk 00:03:01]} {[%emt 00:00:02]} c5 {[%clk 00:03:03]} {[%emt
00:00:01]} 2. Nf3 {[%clk 00:03:01]} {[%emt 00:00:02]} Nc6 {[%clk 00:03:03]}
{[%emt 00:00:02]} 3. d4 {[%clk 00:03:02]} {[%emt 00:00:01]} cxd4 {[%clk
00:03:04]} {[%emt 00:00:02]} 4. c3 {[%clk 00:03:03]} d6 {[%clk 00:03:01]}
{[%emt 00:00:04]} 5. Bc4 {[%clk 00:02:57]} {[%emt 00:00:08]} e6 {[%clk
00:03:02]} {[%emt 00:00:02]} 6. cxd4 {[%clk 00:02:57]} {[%emt 00:00:02]} Nf6
{[%clk 00:02:57]} {[%emt 00:00:07]} 7. Nc3 {[%clk 00:02:57]} a6 {[%clk
00:02:54]} {[%emt 00:00:05]} 8. Bb3 {[%clk 00:02:58]} {[%emt 00:00:02]} b5
{[%clk 00:02:51]} {[%emt 00:00:05]} 9. Qe2 {[%clk 00:02:43]} {[%emt 00:00:16]}
Qb6 {[%clk 00:02:47]} {[%emt 00:00:06]} 10. Be3 {[%clk 00:02:37]} {[%emt
00:00:08]} Qa5 {[%clk 00:02:36]} {[%emt 00:00:12]} 11. O-O {[%clk 00:02:37]}
{[%emt 00:00:03]} Be7 {[%clk 00:02:36]} {[%emt 00:00:02]} 12. Rac1 {[%clk
00:02:27]} {[%emt 00:00:12]} Bb7 {[%clk 00:02:34]} {[%emt 00:00:04]} 13. d5
{[%clk 00:02:14]} {[%emt 00:00:14]} exd5 {[%clk 00:02:26]} {[%emt 00:00:11]} 14.
exd5 {[%clk 00:02:14]} {[%emt 00:00:03]} Nd8 {[%clk 00:02:15]} {[%emt
00:00:12]} 15. Rfd1 {[%clk 00:02:03]} {[%emt 00:00:13]} O-O {[%clk 00:02:14]}
{[%emt 00:00:03]} 16. Bd4 {[%clk 00:01:39]} {[%emt 00:00:26]} Qc7 {[%clk
00:01:52]} {[%emt 00:00:24]} 17. Nxb5 {[%emt 00:00:31]} Qd7 {[%clk 00:01:28]}
18. Na3 {[%clk 00:01:29]} {[%emt 00:00:08]} Ne8 {[%clk 00:01:14]} {[%emt
00:00:15]} 19. Nc4 {[%emt 00:00:34]} Qb5 {[%clk 00:00:36]} {[%emt 00:00:14]} 20.
Qxe7 {[%clk 00:01:15]} {[%emt 00:00:11]} Qxd5 {[%clk 00:00:31]} {[%emt
00:00:07]} 21. Nb6 {[%clk 00:01:07]} {[%emt 00:00:11]} Qh5 {[%clk 00:00:11]}
{[%emt 00:00:21]} 22. Nxa8 {[%clk 00:00:52]} {[%emt 00:00:17]} Bxa8 {[%clk
00:00:11]} {[%emt 00:00:02]} 23. Qxd8 {[%clk 00:00:47]} {[%emt 00:00:07]} 1-0

[Event "Nordstansblixten 2025"]
[Site "Nordstan, Göteborg, Sweden"]
[Date "2025.05.10"]
[Round "4.7"]
[White "Molokov, Andrey"]
[Black "Bergdahl, Martin"]
[Result "0-1"]
[TimeControl "3 minutes + 2 seconds per move from move one"]
[WhiteFideId "1780450"]
[BlackFideId "1782231"]
[WhiteElo "1592"]
[BlackElo "1867"]

1. e4 {[%clk 00:03:03]} c6 {[%clk 00:03:04]} 2. d4 {[%clk 00:03:02]} {[%emt
00:00:03]} d5 {[%clk 00:03:05]} 3. e5 {[%clk 00:03:03]} c5 {[%clk 00:03:07]} 4.
c3 {[%clk 00:03:03]} Nc6 {[%emt 00:00:01]} 5. Nf3 {[%clk 00:03:04]} Bg4 {[%clk
00:03:10]} 6. Be2 {[%clk 00:03:04]} {[%emt 00:00:02]} e6 {[%clk 00:03:11]} 7.
h3 {[%clk 00:03:05]} Bh5 {[%clk 00:03:12]} {[%emt 00:00:01]} 8. Bf4 {[%clk
00:03:03]} {[%emt 00:00:04]} Bxf3 {[%clk 00:03:07]} {[%emt 00:00:07]} 9. Bxf3
{[%clk 00:03:02]} {[%emt 00:00:03]} cxd4 {[%clk 00:03:08]} 10. cxd4 {[%clk
00:03:03]} {[%emt 00:00:01]} Qb6 {[%clk 00:03:10]} 11. Nc3 {[%clk 00:02:26]}
{[%emt 00:00:39]} Qxd4 {[%clk 00:02:40]} {[%emt 00:00:33]} 12. Qxd4 {[%clk
00:02:21]} {[%emt 00:00:07]} Nxd4 {[%clk 00:02:40]} 13. O-O {[%clk 00:02:11]}
{[%emt 00:00:13]} Nxf3+ {[%clk 00:02:33]} {[%emt 00:00:09]} 14. gxf3 {[%clk
00:02:12]} Ne7 {[%clk 00:02:18]} {[%emt 00:00:18]} 15. Nb5 {[%clk 00:02:08]}
{[%emt 00:00:06]} Ng6 {[%clk 00:01:32]} {[%emt 00:00:49]} 16. Be3 {[%clk
00:01:50]} {[%emt 00:00:19]} Kd7 {[%clk 00:01:18]} {[%emt 00:00:16]} 17. Nxa7
{[%clk 00:01:31]} {[%emt 00:00:21]} Nxe5 {[%clk 00:01:11]} {[%emt 00:00:10]} 18.
f4 {[%clk 00:01:17]} {[%emt 00:00:16]} Nc4 {[%clk 00:01:11]} {[%emt 00:00:01]}
19. Nb5 {[%clk 00:01:13]} {[%emt 00:00:06]} Nxe3 {[%clk 00:01:10]} {[%emt
00:00:03]} 20. fxe3 {[%clk 00:01:14]} {[%emt 00:00:01]} Bc5 {[%clk 00:01:10]}
{[%emt 00:00:01]} 21. Rfe1 {[%clk 00:00:53]} {[%emt 00:00:23]} Ra5 {[%clk
00:01:03]} {[%emt 00:00:10]} 22. Nc3 {[%clk 00:00:45]} {[%emt 00:00:09]} d4
{[%clk 00:00:47]} {[%emt 00:00:18]} 23. exd4 {[%clk 00:00:41]} {[%emt
00:00:06]} Bxd4+ {[%clk 00:00:48]} 24. Kg2 {[%clk 00:00:40]} {[%emt 00:00:03]}
Bxc3 {[%clk 00:00:48]} {[%emt 00:00:02]} 25. bxc3 {[%clk 00:00:41]} {[%emt
00:00:01]} Rha8 {[%clk 00:00:49]} {[%emt 00:00:01]} 26. Red1+ {[%clk 00:00:40]}
{[%emt 00:00:03]} Ke7 {[%clk 00:00:48]} {[%emt 00:00:03]} 27. Rd2 {[%clk
00:00:39]} {[%emt 00:00:03]} Ra3 {[%clk 00:00:49]} 28. Rc2 {[%clk 00:00:39]}
{[%emt 00:00:03]} Kd6 {[%clk 00:00:50]} {[%emt 00:00:02]} 29. Kf3 {[%clk
00:00:35]} {[%emt 00:00:05]} b5 {[%clk 00:00:45]} {[%emt 00:00:07]} 30. Ke4
{[%clk 00:00:31]} {[%emt 00:00:06]} R8a4+ {[%clk 00:00:46]} 31. Kd3 {[%clk
00:00:25]} {[%emt 00:00:08]} Rxf4 {[%clk 00:00:44]} {[%emt 00:00:03]} 32. Ke2
{[%clk 00:00:20]} {[%emt 00:00:07]} Rc4 {[%clk 00:00:38]} {[%emt 00:00:08]} 33.
Rb1 {[%clk 00:00:20]} {[%emt 00:00:03]} Kc5 {[%clk 00:00:35]} {[%emt 00:00:05]}
34. Rcb2 {[%clk 00:00:18]} {[%emt 00:00:04]} Ra5 {[%clk 00:00:31]} {[%emt
00:00:06]} 35. Kd3 {[%clk 00:00:16]} {[%emt 00:00:04]} Rh4 {[%clk 00:00:30]}
{[%emt 00:00:02]} 36. Rh1 {[%clk 00:00:07]} {[%emt 00:00:11]} Ra3 {[%clk
00:00:24]} {[%emt 00:00:09]} 37. Kc2 {[%clk 00:00:06]} {[%emt 00:00:02]} Rc4
{[%clk 00:00:21]} {[%emt 00:00:06]} 0-1

[Event "Nordstansblixten 2025"]
[Site "Nordstan, Göteborg, Sweden"]
[Date "2025.05.10"]
[Round "4.10"]
[White "Cigoja, Vuk"]
[Black "Sivarama, Saadhvik"]
[Result "1-0"]
[TimeControl "3 minutes + 2 seconds per move from move one"]
[WhiteFideId "14411628"]
[BlackFideId "1773720"]
[WhiteElo "1719"]
[BlackElo "1592"]

1. e4 {[%clk 00:03:03]} c5 {[%clk 00:03:03]} {[%emt 00:00:02]} 2. Nf3 {[%clk
00:03:04]} {[%emt 00:00:01]} d6 {[%clk 00:03:03]} 3. d4 {[%clk 00:03:06]} cxd4
{[%clk 00:03:03]} {[%emt 00:00:02]} 4. Nxd4 {[%clk 00:03:07]} Nf6 {[%clk
00:03:03]} {[%emt 00:00:03]} 5. Nc3 {[%clk 00:03:07]} {[%emt 00:00:02]} g6
{[%clk 00:03:05]} 6. Bc4 {[%clk 00:02:55]} {[%emt 00:00:14]} Bg7 {[%clk
00:03:04]} {[%emt 00:00:03]} 7. Bb3 {[%clk 00:02:41]} {[%emt 00:00:16]} O-O
{[%clk 00:02:57]} {[%emt 00:00:08]} 8. O-O {[%clk 00:02:42]} {[%emt 00:00:02]}
Nc6 {[%clk 00:02:38]} {[%emt 00:00:21]} 9. Nde2 {[%clk 00:02:32]} {[%emt
00:00:12]} Ne5 {[%clk 00:02:19]} {[%emt 00:00:21]} 10. h3 {[%clk 00:02:25]}
{[%emt 00:00:09]} a6 {[%clk 00:02:14]} {[%emt 00:00:07]} 11. Be3 {[%clk
00:02:19]} {[%emt 00:00:08]} e6 {[%clk 00:02:01]} {[%emt 00:00:15]} 12. f4
{[%clk 00:02:18]} {[%emt 00:00:03]} Nc6 {[%clk 00:01:59]} {[%emt 00:00:04]} 13.
Qd2 {[%clk 00:02:06]} {[%emt 00:00:14]} d5 {[%clk 00:01:53]} {[%emt 00:00:08]}
14. e5 {[%clk 00:01:49]} {[%emt 00:00:19]} Nd7 {[%clk 00:01:40]} {[%emt
00:00:15]} 15. Nd4 {[%clk 00:01:37]} {[%emt 00:00:14]} Nc5 {[%clk 00:01:14]}
{[%emt 00:00:29]} 16. Nxc6 {[%clk 00:01:24]} {[%emt 00:00:14]} Nxb3 {[%clk
00:01:15]} {[%emt 00:00:01]} 17. axb3 {[%clk 00:01:13]} {[%emt 00:00:13]} bxc6
{[%clk 00:01:13]} {[%emt 00:00:02]} 18. Bc5 {[%clk 00:01:12]} {[%emt 00:00:04]}
Re8 {[%clk 00:01:03]} {[%emt 00:00:12]} 19. Qd3 {[%clk 00:01:10]} {[%emt
00:00:04]} Bb7 {[%clk 00:00:58]} {[%emt 00:00:06]} 20. b4 {[%clk 00:01:03]}
{[%emt 00:00:09]} f6 {[%clk 00:00:53]} {[%emt 00:00:08]} 21. Rae1 {[%clk
00:00:55]} {[%emt 00:00:10]} f5 {[%clk 00:00:38]} {[%emt 00:00:17]} 22. Ra1
{[%clk 00:00:51]} {[%emt 00:00:06]} g5 {[%clk 00:00:37]} {[%emt 00:00:03]} 23.
Rae1 {[%clk 00:00:26]} {[%emt 00:00:27]} gxf4 {[%clk 00:00:24]} {[%emt
00:00:14]} 24. Rxf4 {[%clk 00:00:27]} {[%emt 00:00:01]} Qg5 {[%clk 00:00:23]}
{[%emt 00:00:03]} 25. Qf3 {[%clk 00:00:24]} {[%emt 00:00:06]} Bh6 {[%clk
00:00:18]} {[%emt 00:00:07]} 26. Rd4 {[%clk 00:00:21]} {[%emt 00:00:05]} Kh8
{[%clk 00:00:15]} {[%emt 00:00:05]} 27. Rdd1 {[%clk 00:00:17]} {[%emt
00:00:06]} Rg8 {[%clk 00:00:15]} {[%emt 00:00:02]} 28. Re2 {[%clk 00:00:10]}
{[%emt 00:00:09]} Rg6 {[%clk 00:00:14]} {[%emt 00:00:03]} 29. Rf1 {[%clk
00:00:08]} {[%emt 00:00:04]} Rag8 {[%clk 00:00:13]} {[%emt 00:00:02]} 30. Rff2
{[%clk 00:00:08]} {[%emt 00:00:02]} Qc1+ {[%clk 00:00:07]} {[%emt 00:00:07]} 31.
Kh2 {[%clk 00:00:08]} {[%emt 00:00:03]} Qxb2 {[%clk 00:00:05]} {[%emt
00:00:04]} 32. Be7 {[%clk 00:00:06]} {[%emt 00:00:04]} 1-0